[Event "*** Titled Tuesday Blitz"]
[Site "Chess.com"]
[Date "2021.04.06"]
[Round "7"]
[White "TeukkaSalama"]
[Black "korbul"]
[Result "0-1"]
[WhiteElo "2376"]
[BlackElo "2549"]
[TimeControl "180+1"]
[EndTime "11:17:34 PDT"]
[Termination "korbul won on time"]

1. d4 {[%clk 0:03:00.9]} 1... Nf6 {[%clk 0:02:59.7]} 2. Bf4 {[%clk 0:03:01.1]}
2... d5 {[%clk 0:02:57.9]} 3. e3 {[%clk 0:03:01.2]} 3... e6 {[%clk 0:02:58.4]}
4. Nd2 {[%clk 0:03:01.3]} 4... c5 {[%clk 0:02:58.5]} 5. c3 {[%clk 0:03:01.2]}
5... Nc6 {[%clk 0:02:59.4]} 6. Ngf3 {[%clk 0:03:00.8]} 6... Bd6 {[%clk
0:02:59.8]} 7. Bg3 {[%clk 0:03:00.9]} 7... O-O {[%clk 0:02:59.6]} 8. Bd3 {[%clk
0:03:01]} 8... b6 {[%clk 0:02:59.7]} 9. Qe2 {[%clk 0:03:01.3]} 9... Bb7 {[%clk
0:02:58.4]} 10. Rd1 {[%clk 0:03:01.2]} 10... a5 {[%clk 0:02:56.3]} 11. e4 {[%clk
0:02:58.2]} 11... Be7 {[%clk 0:02:55.3]} 12. e5 {[%clk 0:02:42.5]} 12... Nh5
{[%clk 0:02:54.5]} 13. a3 {[%clk 0:02:41.1]} 13... g6 {[%clk 0:02:50.8]} 14. Nf1
{[%clk 0:02:34.1]} 14... Qc8 {[%clk 0:02:49.4]} 15. Ne3 {[%clk 0:02:33.4]} 15...
Ba6 {[%clk 0:02:47.5]} 16. Ng4 {[%clk 0:02:30.4]} 16... Bxd3 {[%clk 0:02:45.4]}
17. Rxd3 {[%clk 0:02:29.8]} 17... cxd4 {[%clk 0:02:42.7]} 18. cxd4 {[%clk
0:02:29]} 18... b5 {[%clk 0:02:42.9]} 19. Bh4 {[%clk 0:02:18.5]} 19... Nf4
{[%clk 0:02:36.1]} 20. Qe3 {[%clk 0:02:12.8]} 20... Nxd3+ {[%clk 0:02:35.7]} 21.
Qxd3 {[%clk 0:02:13.7]} 21... Bxh4 {[%clk 0:02:34.8]} 22. Nxh4 {[%clk
0:02:14.5]} 22... Ne7 {[%clk 0:02:22.1]} 23. Nf6+ {[%clk 0:02:11.7]} 23... Kg7
{[%clk 0:02:21.7]} 24. O-O {[%clk 0:02:06.7]} 24... Qc4 {[%clk 0:02:20]} 25. Qe3
{[%clk 0:01:55.5]} 25... Rfc8 {[%clk 0:02:06.2]} 26. Qg5 {[%clk 0:01:43.6]}
26... Qe2 {[%clk 0:02:05.7]} 27. Nf3 {[%clk 0:01:16.1]} 27... Ng8 {[%clk
0:02:03.3]} 28. h4 {[%clk 0:01:04.5]} 28... h6 {[%clk 0:02:00.7]} 29. Nh5+
{[%clk 0:00:58.7]} 29... Kh7 {[%clk 0:01:54.2]} 30. Nf6+ {[%clk 0:00:49.2]}
30... Nxf6 {[%clk 0:01:48.4]} 31. Qxf6 {[%clk 0:00:48.8]} 31... Ra7 {[%clk
0:01:37.2]} 32. g4 {[%clk 0:00:26.7]} 32... Qe4 {[%clk 0:01:34.9]} 33. h5 {[%clk
0:00:05.6]} 33... Qxg4+ {[%clk 0:01:34.4]} 34. Kh2 {[%clk 0:00:04.7]} 34...
Qxh5+ {[%clk 0:01:34.1]} 35. Kg2 {[%clk 0:00:04.7]} 35... Qg4+ {[%clk
0:01:32.7]} 36. Kh2 {[%clk 0:00:04.8]} 36... Qf5 {[%clk 0:01:32.3]} 37. Qh4
{[%clk 0:00:03.6]} 37... Qxf3 {[%clk 0:01:31.3]} 38. Rh1 {[%clk 0:00:02.1]}
38... Rc2 {[%clk 0:01:27]} 39. Rf1 {[%clk 0:00:01.8]} 39... Qh5 {[%clk
0:01:23.4]} 40. Qxh5 {[%clk 0:00:01.8]} 40... gxh5 {[%clk 0:01:22.9]} 0-1

[Event "*** Titled Tuesday Blitz"]
[Site "Chess.com"]
[Date "2021.04.06"]
[Round "7"]
[White "RobertoJBM"]
[Black "Semetey"]
[Result "1-0"]
[WhiteElo "2700"]
[BlackElo "2524"]
[TimeControl "180+1"]
[EndTime "11:17:39 PDT"]
[Termination "RobertoJBM won by checkmate"]

1. e4 {[%clk 0:03:00.9]} 1... c5 {[%clk 0:02:58.2]} 2. Nf3 {[%clk 0:03:00.8]}
2... d6 {[%clk 0:02:59.1]} 3. d4 {[%clk 0:03:00.9]} 3... cxd4 {[%clk 0:02:57.2]}
4. Nxd4 {[%clk 0:03:01.8]} 4... Nf6 {[%clk 0:02:57.7]} 5. Nc3 {[%clk 0:03:01.9]}
5... a6 {[%clk 0:02:58.4]} 6. f3 {[%clk 0:03:00.8]} 6... e5 {[%clk 0:02:58.4]}
7. Nb3 {[%clk 0:03:01.3]} 7... Be6 {[%clk 0:02:58.6]} 8. Be3 {[%clk 0:03:01.9]}
8... Be7 {[%clk 0:02:59.1]} 9. Qd2 {[%clk 0:03:02.6]} 9... O-O {[%clk
0:02:59.3]} 10. O-O-O {[%clk 0:03:03.3]} 10... Nbd7 {[%clk 0:02:59.7]} 11. g4
{[%clk 0:03:03.3]} 11... b5 {[%clk 0:02:59.1]} 12. g5 {[%clk 0:03:03.8]} 12...
Nh5 {[%clk 0:02:59.5]} 13. Kb1 {[%clk 0:03:03.1]} 13... Nb6 {[%clk 0:02:59.1]}
14. Rg1 {[%clk 0:03:02.7]} 14... Nc4 {[%clk 0:02:57.4]} 15. Bxc4 {[%clk
0:03:00.2]} 15... bxc4 {[%clk 0:02:58.3]} 16. Nc1 {[%clk 0:02:59.8]} 16... Rb8
{[%clk 0:02:58.6]} 17. Ka1 {[%clk 0:02:58.9]} 17... Qd7 {[%clk 0:02:47.4]} 18.
N1e2 {[%clk 0:02:57.9]} 18... Qb7 {[%clk 0:02:47.1]} 19. Rb1 {[%clk 0:02:56.7]}
19... Rfd8 {[%clk 0:02:43.9]} 20. Rgd1 {[%clk 0:02:52.2]} 20... Bf8 {[%clk
0:02:34]} 21. h4 {[%clk 0:02:48.2]} 21... g6 {[%clk 0:02:32.7]} 22. Nd5 {[%clk
0:02:45.6]} 22... Bg7 {[%clk 0:02:24.8]} 23. Qa5 {[%clk 0:02:35.5]} 23... Bxd5
{[%clk 0:02:20.3]} 24. Rxd5 {[%clk 0:02:27.5]} 24... Nf4 {[%clk 0:02:20.5]} 25.
Nxf4 {[%clk 0:02:25.9]} 25... exf4 {[%clk 0:02:20.8]} 26. Bd4 {[%clk 0:02:26.3]}
26... Bxd4 {[%clk 0:02:16.7]} 27. Rxd4 {[%clk 0:02:26.3]} 27... Qc6 {[%clk
0:02:15.3]} 28. Rbd1 {[%clk 0:02:20.3]} 28... Rd7 {[%clk 0:02:13.1]} 29. Qd5
{[%clk 0:01:57.6]} 29... Qb6 {[%clk 0:02:11.5]} 30. Rb1 {[%clk 0:01:50.8]} 30...
c3 {[%clk 0:02:10.9]} 31. b3 {[%clk 0:01:48.8]} 31... Rc8 {[%clk 0:02:05.6]} 32.
Rd3 {[%clk 0:01:35.9]} 32... Rc5 {[%clk 0:02:04.4]} 33. Qd4 {[%clk 0:01:35.9]}
33... Qc7 {[%clk 0:01:58.6]} 34. Rbd1 {[%clk 0:01:34.1]} 34... Qa5 {[%clk
0:01:39.2]} 35. Qf6 {[%clk 0:00:50.8]} 35... d5 {[%clk 0:01:15.9]} 36. Qxf4
{[%clk 0:00:31.5]} 36... Qa3 {[%clk 0:01:14.1]} 37. Qb8+ {[%clk 0:00:30.4]}
37... Kg7 {[%clk 0:01:13.9]} 38. Rxc3 {[%clk 0:00:20.7]} 38... Ra5 {[%clk
0:01:08.3]} 39. Qe5+ {[%clk 0:00:20.3]} 39... f6 {[%clk 0:01:08.6]} 40. Qxf6+
{[%clk 0:00:19.4]} 40... Kg8 {[%clk 0:01:08.5]} 41. Rc8+ {[%clk 0:00:19.5]}
41... Rd8 {[%clk 0:01:08.5]} 42. Rxd8+ {[%clk 0:00:19.5]} 42... Qf8 {[%clk
0:01:09.4]} 43. Rxf8# {[%clk 0:00:18.9]} 1-0

[Event "*** Titled Tuesday Blitz"]
[Site "Chess.com"]
[Date "2021.04.06"]
[Round "7"]
[White "Chamal_Gedgafov"]
[Black "zurzan"]
[Result "1-0"]
[WhiteElo "2207"]
[BlackElo "1985"]
[TimeControl "180+1"]
[EndTime "11:17:39 PDT"]
[Termination "Chamal_Gedgafov won by resignation"]

1. d4 {[%clk 0:03:00.9]} 1... d6 {[%clk 0:02:59.4]} 2. c4 {[%clk 0:03:00]} 2...
f5 {[%clk 0:02:58.9]} 3. Nc3 {[%clk 0:02:58.9]} 3... Nf6 {[%clk 0:02:59]} 4. g3
{[%clk 0:02:59.3]} 4... g6 {[%clk 0:02:59]} 5. Bg2 {[%clk 0:02:59.8]} 5... Bg7
{[%clk 0:02:59.9]} 6. Nf3 {[%clk 0:02:59.2]} 6... O-O {[%clk 0:03:00.8]} 7. O-O
{[%clk 0:02:59.3]} 7... c6 {[%clk 0:03:01.7]} 8. b3 {[%clk 0:02:58.8]} 8... Na6
{[%clk 0:02:59.9]} 9. Bb2 {[%clk 0:02:57.8]} 9... Qc7 {[%clk 0:03:00]} 10. d5
{[%clk 0:02:51.3]} 10... e5 {[%clk 0:02:55.4]} 11. dxe6 {[%clk 0:02:50.6]} 11...
Bxe6 {[%clk 0:02:55.6]} 12. e3 {[%clk 0:02:32.5]} 12... Rad8 {[%clk 0:02:53.7]}
13. a3 {[%clk 0:02:26.7]} 13... Rfe8 {[%clk 0:02:52.2]} 14. Qc2 {[%clk
0:02:25.2]} 14... Bc8 {[%clk 0:02:50.8]} 15. Rac1 {[%clk 0:02:22.8]} 15... Qe7
{[%clk 0:02:48.3]} 16. Rfd1 {[%clk 0:02:21.1]} 16... Nc5 {[%clk 0:02:44.4]} 17.
b4 {[%clk 0:02:20.2]} 17... Nce4 {[%clk 0:02:43.6]} 18. Nxe4 {[%clk 0:02:19.8]}
18... Nxe4 {[%clk 0:02:42.2]} 19. Bxg7 {[%clk 0:02:18]} 19... Qxg7 {[%clk
0:02:43.1]} 20. Nd4 {[%clk 0:02:11.8]} 20... d5 {[%clk 0:02:26.1]} 21. c5 {[%clk
0:02:02]} 21... h5 {[%clk 0:02:08.8]} 22. a4 {[%clk 0:02:01.7]} 22... Qh6 {[%clk
0:02:03.1]} 23. b5 {[%clk 0:01:58.5]} 23... Bd7 {[%clk 0:01:59.4]} 24. Rb1
{[%clk 0:01:53.3]} 24... h4 {[%clk 0:01:57.1]} 25. bxc6 {[%clk 0:01:50.6]} 25...
Bxc6 {[%clk 0:01:52.6]} 26. Nxc6 {[%clk 0:01:46.9]} 26... bxc6 {[%clk
0:01:52.1]} 27. Rb7 {[%clk 0:01:47.8]} 27... hxg3 {[%clk 0:01:47.7]} 28. hxg3
{[%clk 0:01:46.9]} 28... Ra8 {[%clk 0:01:36.9]} 29. Qb2 {[%clk 0:01:43.5]} 29...
Rf8 {[%clk 0:01:25.6]} 30. Qd4 {[%clk 0:01:33.4]} 30... Rf7 {[%clk 0:01:24.4]}
31. Rdb1 {[%clk 0:01:32.6]} 31... Raf8 {[%clk 0:01:21]} 32. a5 {[%clk 0:01:31]}
32... Rxb7 {[%clk 0:01:20]} 33. Rxb7 {[%clk 0:01:29.8]} 33... Rf7 {[%clk
0:01:20.9]} 34. a6 {[%clk 0:01:29.5]} 34... Qf8 {[%clk 0:01:15.4]} 35. Qe5
{[%clk 0:01:25.7]} 35... Nxc5 {[%clk 0:01:13.6]} 36. Rb8 {[%clk 0:01:19.9]}
36... Nxa6 {[%clk 0:01:03.2]} 37. Rxf8+ {[%clk 0:01:18.7]} 37... Rxf8 {[%clk
0:01:04.1]} 38. Qe6+ {[%clk 0:01:17.6]} 38... Rf7 {[%clk 0:01:03.9]} 39. Qxc6
{[%clk 0:01:17.3]} 39... Nc7 {[%clk 0:01:01.8]} 40. Qxg6+ {[%clk 0:01:13.5]}
40... Kf8 {[%clk 0:01:01.4]} 41. Qd6+ {[%clk 0:01:13.1]} 41... Ke8 {[%clk
0:01:00.6]} 42. Bxd5 {[%clk 0:01:12.1]} 42... Nxd5 {[%clk 0:01:00.4]} 43. Qxd5
{[%clk 0:01:13]} 43... Kf8 {[%clk 0:00:55.6]} 44. e4 {[%clk 0:01:12.5]} 44...
fxe4 {[%clk 0:00:55]} 45. Qxe4 {[%clk 0:01:13]} 45... Re7 {[%clk 0:00:49.6]} 46.
Qf5+ {[%clk 0:01:10.2]} 46... Ke8 {[%clk 0:00:49.8]} 47. g4 {[%clk 0:01:10.3]}
47... Kd8 {[%clk 0:00:48.2]} 48. g5 {[%clk 0:01:10.2]} 48... Kc7 {[%clk
0:00:41]} 49. g6 {[%clk 0:01:10]} 49... Kb6 {[%clk 0:00:37.9]} 50. Qf6+ {[%clk
0:01:09.2]} 1-0

[Event "*** Titled Tuesday Blitz"]
[Site "Chess.com"]
[Date "2021.04.06"]
[Round "7"]
[White "DinaBelenkaya"]
[Black "nss13"]
[Result "1-0"]
[WhiteElo "2365"]
[BlackElo "2501"]
[TimeControl "180+1"]
[EndTime "11:17:40 PDT"]
[Termination "DinaBelenkaya won on time"]

1. e4 {[%clk 0:03:00.9]} 1... c5 {[%clk 0:02:59.1]} 2. Nc3 {[%clk 0:02:56.1]}
2... Nc6 {[%clk 0:02:57.5]} 3. g3 {[%clk 0:02:54.8]} 3... g6 {[%clk 0:02:55.6]}
4. Bg2 {[%clk 0:02:54.2]} 4... Bg7 {[%clk 0:02:38.9]} 5. d3 {[%clk 0:02:54.1]}
5... d6 {[%clk 0:02:39.1]} 6. Be3 {[%clk 0:02:51.5]} 6... e5 {[%clk 0:02:33.5]}
7. f4 {[%clk 0:02:26.9]} 7... Nge7 {[%clk 0:02:31.6]} 8. Nf3 {[%clk 0:02:24]}
8... O-O {[%clk 0:02:24.3]} 9. Qd2 {[%clk 0:02:13.2]} 9... f5 {[%clk 0:02:22.4]}
10. O-O-O {[%clk 0:02:11.1]} 10... Rb8 {[%clk 0:02:03.3]} 11. fxe5 {[%clk
0:02:04.4]} 11... Nxe5 {[%clk 0:01:58]} 12. Nxe5 {[%clk 0:01:59.2]} 12... Bxe5
{[%clk 0:01:56.2]} 13. Rdf1 {[%clk 0:01:52.9]} 13... Be6 {[%clk 0:01:46.6]} 14.
Bh6 {[%clk 0:01:50.8]} 14... Rf7 {[%clk 0:01:37.7]} 15. Nd5 {[%clk 0:01:26.1]}
15... Bxd5 {[%clk 0:01:26.4]} 16. exd5 {[%clk 0:01:27]} 16... b5 {[%clk
0:01:14.1]} 17. g4 {[%clk 0:01:27.1]} 17... b4 {[%clk 0:01:10.1]} 18. h4 {[%clk
0:01:12.2]} 18... fxg4 {[%clk 0:00:56]} 19. Rxf7 {[%clk 0:01:11.1]} 19... Kxf7
{[%clk 0:00:56.9]} 20. h5 {[%clk 0:01:11.5]} 20... Nf5 {[%clk 0:00:49.7]} 21.
Be4 {[%clk 0:01:12]} 21... Qf6 {[%clk 0:00:47.3]} 22. Bg5 {[%clk 0:01:07]} 22...
Bxb2+ {[%clk 0:00:41.4]} 23. Kb1 {[%clk 0:01:05.6]} 23... Bc3 {[%clk 0:00:14.6]}
24. Qc1 {[%clk 0:01:01.4]} 24... Qe5 {[%clk 0:00:10.7]} 25. hxg6+ {[%clk
0:00:54.2]} 25... Kxg6 {[%clk 0:00:10.9]} 26. Rxh7 {[%clk 0:00:55.1]} 26... Kxh7
{[%clk 0:00:10.7]} 27. Qh1+ {[%clk 0:00:53.7]} 27... Kg8 {[%clk 0:00:08.9]} 28.
Qh5 {[%clk 0:00:53.4]} 28... Qg7 {[%clk 0:00:07]} 29. Bxf5 {[%clk 0:00:53.1]}
29... Re8 {[%clk 0:00:03.1]} 30. Qxe8+ {[%clk 0:00:52.9]} 1-0

[Event "*** Titled Tuesday Blitz"]
[Site "Chess.com"]
[Date "2021.04.06"]
[Round "7"]
[White "fabianvivasz"]
[Black "viktorgen2021"]
[Result "0-1"]
[WhiteElo "2391"]
[BlackElo "2277"]
[TimeControl "180+1"]
[EndTime "11:17:41 PDT"]
[Termination "viktorgen2021 won on time"]

1. c4 {[%clk 0:02:55.3]} 1... Nf6 {[%clk 0:02:59.2]} 2. g3 {[%clk 0:02:55.3]}
2... e6 {[%clk 0:02:59.6]} 3. Bg2 {[%clk 0:02:55.1]} 3... d5 {[%clk 0:02:59.9]}
4. Nf3 {[%clk 0:02:55.7]} 4... b6 {[%clk 0:02:59.7]} 5. O-O {[%clk 0:02:53.8]}
5... Bb7 {[%clk 0:02:59.5]} 6. b3 {[%clk 0:02:42.7]} 6... Be7 {[%clk 0:02:59.3]}
7. Bb2 {[%clk 0:02:42.7]} 7... Nbd7 {[%clk 0:02:58.7]} 8. Nc3 {[%clk 0:02:24.4]}
8... O-O {[%clk 0:02:57.6]} 9. d3 {[%clk 0:02:16]} 9... c5 {[%clk 0:02:55.8]}
10. e3 {[%clk 0:01:51.8]} 10... Rc8 {[%clk 0:02:50.7]} 11. Rc1 {[%clk
0:01:41.6]} 11... Re8 {[%clk 0:02:45.1]} 12. Qe2 {[%clk 0:01:38.8]} 12... Bf8
{[%clk 0:02:37.3]} 13. Rfd1 {[%clk 0:01:34.3]} 13... e5 {[%clk 0:02:16.5]} 14.
Nh4 {[%clk 0:01:19.7]} 14... Nb8 {[%clk 0:02:05.5]} 15. cxd5 {[%clk 0:01:09.7]}
15... Nxd5 {[%clk 0:02:04.5]} 16. Bh3 {[%clk 0:00:42.2]} 16... Rc7 {[%clk
0:01:58.8]} 17. Nb5 {[%clk 0:00:41.5]} 17... Rc6 {[%clk 0:01:53.2]} 18. Nxa7
{[%clk 0:00:24.9]} 18... Rf6 {[%clk 0:01:48.9]} 19. Nb5 {[%clk 0:00:22.6]} 19...
g6 {[%clk 0:01:36.5]} 20. Qd2 {[%clk 0:00:13]} 20... Bg7 {[%clk 0:01:33.6]} 21.
d4 {[%clk 0:00:13]} 21... cxd4 {[%clk 0:01:28]} 22. exd4 {[%clk 0:00:13.9]}
22... e4 {[%clk 0:01:28.4]} 23. Ng2 {[%clk 0:00:10.5]} 23... Rf3 {[%clk
0:01:23.6]} 24. Bg4 {[%clk 0:00:07.7]} 24... Rd3 {[%clk 0:01:22.6]} 25. Qe2
{[%clk 0:00:06.7]} 25... Rxd1+ {[%clk 0:01:22.8]} 26. Rxd1 {[%clk 0:00:06.6]}
26... f5 {[%clk 0:01:23.3]} 27. Bh3 {[%clk 0:00:06.5]} 27... Kh8 {[%clk
0:01:21.8]} 28. Ne3 {[%clk 0:00:06.7]} 28... Nb4 {[%clk 0:01:20.4]} 29. Bf1
{[%clk 0:00:05.4]} 29... Nd3 {[%clk 0:01:20.4]} 30. Ba1 {[%clk 0:00:05.5]} 30...
Ba6 {[%clk 0:01:20.1]} 31. a4 {[%clk 0:00:05.1]} 31... Qd7 {[%clk 0:01:19.3]}
32. Qc2 {[%clk 0:00:04.7]} 32... Nb4 {[%clk 0:01:16.3]} 33. Qc3 {[%clk
0:00:03.4]} 33... Nd5 {[%clk 0:01:15.7]} 34. Nxd5 {[%clk 0:00:03.2]} 34... Qxd5
{[%clk 0:01:16.1]} 35. Nc7 {[%clk 0:00:03.3]} 35... Qd7 {[%clk 0:01:15.2]} 36.
Nxa6 {[%clk 0:00:03.5]} 36... Nxa6 {[%clk 0:01:14.4]} 37. Bxa6 {[%clk
0:00:04.4]} 37... f4 {[%clk 0:01:14.7]} 38. Bb5 {[%clk 0:00:04.7]} 38... Qg4
{[%clk 0:01:13.5]} 39. Rf1 {[%clk 0:00:01.9]} 39... Rf8 {[%clk 0:01:13.3]} 0-1

[Event "*** Titled Tuesday Blitz"]
[Site "Chess.com"]
[Date "2021.04.06"]
[Round "7"]
[White "grunbergmihai"]
[Black "albi1999"]
[Result "0-1"]
[WhiteElo "2474"]
[BlackElo "2602"]
[TimeControl "180+1"]
[EndTime "11:17:47 PDT"]
[Termination "albi1999 won by resignation"]

1. Nf3 {[%clk 0:03:00.9]} 1... d5 {[%clk 0:02:51.5]} 2. c4 {[%clk 0:03:00.7]}
2... d4 {[%clk 0:02:49.6]} 3. e3 {[%clk 0:03:00.4]} 3... Nc6 {[%clk 0:02:48.8]}
4. d3 {[%clk 0:02:59.4]} 4... e5 {[%clk 0:02:47.9]} 5. a3 {[%clk 0:02:59.2]}
5... a5 {[%clk 0:02:43.5]} 6. exd4 {[%clk 0:02:58.1]} 6... exd4 {[%clk
0:02:36.9]} 7. g3 {[%clk 0:02:57.6]} 7... Bf5 {[%clk 0:02:34.8]} 8. Bg2 {[%clk
0:02:56.5]} 8... Be7 {[%clk 0:02:29.9]} 9. O-O {[%clk 0:02:55.9]} 9... Nf6
{[%clk 0:02:30.2]} 10. Re1 {[%clk 0:02:52.8]} 10... O-O {[%clk 0:02:27.6]} 11.
Ne5 {[%clk 0:02:52.2]} 11... Nxe5 {[%clk 0:02:21.8]} 12. Rxe5 {[%clk 0:02:53.1]}
12... Bg6 {[%clk 0:02:14.5]} 13. Bg5 {[%clk 0:02:19.6]} 13... c6 {[%clk
0:02:07]} 14. Qc2 {[%clk 0:02:01.6]} 14... h6 {[%clk 0:01:56.1]} 15. Bxf6 {[%clk
0:02:00.3]} 15... Bxf6 {[%clk 0:01:57]} 16. Re2 {[%clk 0:01:58.2]} 16... Re8
{[%clk 0:01:56.7]} 17. Rxe8+ {[%clk 0:01:47.3]} 17... Qxe8 {[%clk 0:01:57.6]}
18. Nd2 {[%clk 0:01:43.6]} 18... Qd7 {[%clk 0:01:56.2]} 19. Ne4 {[%clk 0:01:41]}
19... Be7 {[%clk 0:01:55.7]} 20. Re1 {[%clk 0:01:38.6]} 20... Re8 {[%clk
0:01:55.1]} 21. f4 {[%clk 0:01:25.2]} 21... Bf8 {[%clk 0:01:51.2]} 22. Qd2
{[%clk 0:01:22.7]} 22... b6 {[%clk 0:01:48.2]} 23. Nf2 {[%clk 0:01:20.1]} 23...
Re3 {[%clk 0:01:39]} 24. Rxe3 {[%clk 0:01:11.9]} 24... dxe3 {[%clk 0:01:39.9]}
25. Qxe3 {[%clk 0:01:12.3]} 25... Bc5 {[%clk 0:01:40.4]} 26. Qe2 {[%clk
0:01:08.3]} 26... Qxd3 {[%clk 0:01:28.4]} 27. Qxd3 {[%clk 0:01:07.2]} 27... Bxd3
{[%clk 0:01:29.3]} 28. Bxc6 {[%clk 0:01:06.5]} 28... Bxc4 {[%clk 0:01:27.2]} 29.
Kg2 {[%clk 0:01:06.2]} 29... Kf8 {[%clk 0:01:20.2]} 30. Ne4 {[%clk 0:01:03.2]}
30... Bd4 {[%clk 0:01:19.8]} 31. b4 {[%clk 0:00:56.7]} 31... Ke7 {[%clk
0:01:17.8]} 32. bxa5 {[%clk 0:00:51.8]} 32... bxa5 {[%clk 0:01:18.7]} 33. a4
{[%clk 0:00:51.3]} 33... Be2 {[%clk 0:01:05.3]} 34. Nd2 {[%clk 0:00:44.2]} 34...
Kd6 {[%clk 0:01:01.2]} 35. Nb3 {[%clk 0:00:43.7]} 35... Bc3 {[%clk 0:00:53.4]}
36. Be8 {[%clk 0:00:41.1]} 36... Bc4 {[%clk 0:00:52.4]} 37. Nc1 {[%clk
0:00:21.2]} 37... Bd2 {[%clk 0:00:52.4]} 0-1

[Event "*** Titled Tuesday Blitz"]
[Site "Chess.com"]
[Date "2021.04.06"]
[Round "7"]
[White "Chuchofrio1"]
[Black "Nemsko"]
[Result "1-0"]
[WhiteElo "2373"]
[BlackElo "2298"]
[TimeControl "180+1"]
[EndTime "11:17:47 PDT"]
[Termination "Chuchofrio1 won by resignation"]

1. e4 {[%clk 0:02:56.9]} 1... e5 {[%clk 0:02:58.3]} 2. Nf3 {[%clk 0:02:52.4]}
2... Nc6 {[%clk 0:02:57.7]} 3. Bb5 {[%clk 0:02:51.3]} 3... a6 {[%clk 0:02:57.7]}
4. Ba4 {[%clk 0:02:51]} 4... Nf6 {[%clk 0:02:55.6]} 5. O-O {[%clk 0:02:51]} 5...
b5 {[%clk 0:02:53.1]} 6. Bb3 {[%clk 0:02:50.9]} 6... Be7 {[%clk 0:02:53.4]} 7.
Re1 {[%clk 0:02:48.2]} 7... O-O {[%clk 0:02:51.5]} 8. d4 {[%clk 0:02:48.4]} 8...
d6 {[%clk 0:02:45]} 9. Nc3 {[%clk 0:02:44.4]} 9... Bg4 {[%clk 0:02:43.4]} 10.
dxe5 {[%clk 0:02:20.1]} 10... Nxe5 {[%clk 0:02:42.1]} 11. Bf4 {[%clk 0:02:20.1]}
11... Nxf3+ {[%clk 0:02:41.8]} 12. gxf3 {[%clk 0:02:17.6]} 12... Bh3 {[%clk
0:02:39.5]} 13. Bg3 {[%clk 0:02:09.4]} 13... c6 {[%clk 0:02:26.6]} 14. Ne2
{[%clk 0:02:04.2]} 14... Qc7 {[%clk 0:02:12.5]} 15. Nf4 {[%clk 0:01:58.9]} 15...
Bd7 {[%clk 0:02:10]} 16. Nd3 {[%clk 0:01:54.2]} 16... c5 {[%clk 0:02:07]} 17. c4
{[%clk 0:01:53.5]} 17... Be6 {[%clk 0:01:55.1]} 18. Rc1 {[%clk 0:01:46.4]} 18...
Qb7 {[%clk 0:01:39.7]} 19. Nf4 {[%clk 0:01:36.8]} 19... Rad8 {[%clk 0:01:27.8]}
20. Nxe6 {[%clk 0:01:32.4]} 20... fxe6 {[%clk 0:01:28.7]} 21. cxb5 {[%clk
0:01:32.7]} 21... axb5 {[%clk 0:01:18.1]} 22. Bxe6+ {[%clk 0:01:31]} 22... Kh8
{[%clk 0:01:18.1]} 23. Qe2 {[%clk 0:01:25]} 23... Nh5 {[%clk 0:01:10.1]} 24. Bd5
{[%clk 0:01:19.3]} 24... Qa6 {[%clk 0:01:05.8]} 25. a3 {[%clk 0:01:13.1]} 25...
Qb6 {[%clk 0:00:59.4]} 26. Qe3 {[%clk 0:01:06.7]} 26... Bf6 {[%clk 0:00:52.1]}
27. b4 {[%clk 0:01:04.3]} 27... Bd4 {[%clk 0:00:50.6]} 28. Qg5 {[%clk
0:00:46.6]} 28... Nxg3 {[%clk 0:00:43.6]} 29. hxg3 {[%clk 0:00:47.5]} 29... cxb4
{[%clk 0:00:37.8]} 30. Kg2 {[%clk 0:00:40.9]} 30... Bxf2 {[%clk 0:00:30.6]} 31.
Rh1 {[%clk 0:00:32]} 31... Be3 {[%clk 0:00:21.5]} 32. Rxh7+ {[%clk 0:00:30]} 1-0

[Event "*** Titled Tuesday Blitz"]
[Site "Chess.com"]
[Date "2021.04.06"]
[Round "7"]
[White "WPWPWP-2015"]
[Black "kingofthenil"]
[Result "0-1"]
[WhiteElo "2438"]
[BlackElo "2625"]
[TimeControl "180+1"]
[EndTime "11:17:50 PDT"]
[Termination "kingofthenil won on time"]

1. d4 {[%clk 0:02:56.7]} 1... e6 {[%clk 0:02:59.7]} 2. e4 {[%clk 0:02:55.7]}
2... Ke7 {[%clk 0:03:00.6]} 3. f4 {[%clk 0:02:48.4]} 3... Kd6 {[%clk 0:02:53.6]}
4. Nf3 {[%clk 0:02:45]} 4... c6 {[%clk 0:02:52.9]} 5. f5 {[%clk 0:02:43.3]} 5...
Kc7 {[%clk 0:02:50.7]} 6. Nc3 {[%clk 0:02:42.6]} 6... Qe8 {[%clk 0:02:50.5]} 7.
Bf4+ {[%clk 0:02:40.9]} 7... Kd8 {[%clk 0:02:50]} 8. Bd3 {[%clk 0:02:33.2]} 8...
exf5 {[%clk 0:02:45.7]} 9. O-O {[%clk 0:02:33]} 9... fxe4 {[%clk 0:02:44.8]} 10.
Nxe4 {[%clk 0:02:30.5]} 10... d5 {[%clk 0:02:45.7]} 11. Nd6 {[%clk 0:02:07.9]}
11... Bxd6 {[%clk 0:02:39.1]} 12. Bxd6 {[%clk 0:02:08.8]} 12... Be6 {[%clk
0:02:38.7]} 13. Qd2 {[%clk 0:01:52.6]} 13... Nd7 {[%clk 0:02:30]} 14. Qg5+
{[%clk 0:01:36.3]} 14... Ngf6 {[%clk 0:02:29]} 15. Qxg7 {[%clk 0:01:32.6]} 15...
Rg8 {[%clk 0:02:28]} 16. Qh6 {[%clk 0:01:32.2]} 16... Ne4 {[%clk 0:02:26.4]} 17.
Qh4+ {[%clk 0:01:27.2]} 17... Kc8 {[%clk 0:02:14.5]} 18. Bxe4 {[%clk 0:01:23.1]}
18... dxe4 {[%clk 0:02:15.4]} 19. Qxe4 {[%clk 0:01:19]} 19... Rxg2+ {[%clk
0:02:16]} 20. Kh1 {[%clk 0:01:17.7]} 20... Rg4 {[%clk 0:02:10.1]} 21. Qe2 {[%clk
0:01:11.9]} 21... Qg8 {[%clk 0:02:08.3]} 22. Bg3 {[%clk 0:01:10.2]} 22... Bd5
{[%clk 0:02:06]} 23. c4 {[%clk 0:01:05.9]} 23... Be4 {[%clk 0:02:06.5]} 24. Kg1
{[%clk 0:00:57.5]} 24... Nf6 {[%clk 0:01:57.8]} 25. Rf2 {[%clk 0:00:40.4]} 25...
Nh5 {[%clk 0:01:56.9]} 26. Rg2 {[%clk 0:00:37.1]} 26... Nxg3 {[%clk 0:01:52.5]}
27. hxg3 {[%clk 0:00:36.6]} 27... Rxg3 {[%clk 0:01:53.4]} 28. Rf1 {[%clk
0:00:30.6]} 28... Kc7 {[%clk 0:01:43.5]} 29. Rf2 {[%clk 0:00:18.5]} 29... f5
{[%clk 0:01:40.8]} 30. Qd2 {[%clk 0:00:17]} 30... Qg4 {[%clk 0:01:39.1]} 31. Kf1
{[%clk 0:00:11.5]} 31... Bxf3 {[%clk 0:01:35.4]} 32. Rxg3 {[%clk 0:00:03.3]}
32... Qxg3 {[%clk 0:01:36.2]} 33. Qe3 {[%clk 0:00:03]} 33... Bg2+ {[%clk
0:01:09.1]} 34. Ke2 {[%clk 0:00:03]} 34... Qxe3+ {[%clk 0:01:10]} 35. Kxe3
{[%clk 0:00:03.9]} 35... Re8+ {[%clk 0:01:09.4]} 36. Kf4 {[%clk 0:00:03.7]}
36... Be4 {[%clk 0:01:10.3]} 37. Rh2 {[%clk 0:00:03.1]} 37... Re7 {[%clk
0:01:11.2]} 38. Kg5 {[%clk 0:00:02.2]} 38... Rd7 {[%clk 0:01:11]} 39. Kf6 {[%clk
0:00:01.7]} 39... Rxd4 {[%clk 0:01:11.4]} 40. Ke5 {[%clk 0:00:01.5]} 40... Rxc4
{[%clk 0:01:11.5]} 41. Rxh7+ {[%clk 0:00:01.2]} 41... Kb6 {[%clk 0:01:12.1]} 42.
b3 {[%clk 0:00:01.8]} 42... Rc2 {[%clk 0:01:12.5]} 43. Rh3 {[%clk 0:00:01.2]}
43... Rxa2 {[%clk 0:01:13.4]} 0-1